{"text_format":"1","workbook":"xlsx","n_sheets":4,"sheets":["Yleisasetukset","Original","Standard","Modified"],"not_rendered":{"charts":0,"images":1,"macros":1,"external_links":0,"defined_names":13,"comments":0,"pivot_tables":0},"unopened":[],"bounds":{"document_bytes":16777216,"sheet_cells":100000,"rows_first":2000,"rows_last":500,"rows_between":2000,"halvings":0,"cell_chars":16384,"cell_head_chars":4096},"cells_cut":0,"cells_raw":0,"read":"whole","date_system":"1900"}

{"sheet":"Yleisasetukset","index":0,"n_rows":0,"n_cols":0,"rows_kept":0,"cut":false,"hidden":false,"merged":[]}

{"sheet":"Original","index":1,"n_rows":21,"n_cols":211,"rows_kept":21,"cut":false,"hidden":false,"merged":[[0,14,0,22]]}
[null,"Eurotrial 2019 - Finland",null,null,null,null,null,null,null,null,null,null,null,null,{"$f":"NOW()","v":"2019-08-11T21:53:47.970"},null,null,null,null,null,null,null,null,null,null,null,{"$f":"B1","v":"Eurotrial 2019 - Finland"},null,null,null,null,null,null,null,null,null,{"$f":"B1","v":"Eurotrial 2019 - Finland"},null,null,null,null,null,null,null,null,null,null,{"$f":"B1","v":"Eurotrial 2019 - Finland"},null,null,null,null,null,null,null,null,null,null,{"$f":"B1","v":"Eurotrial 2019 - Finland"},null,null,null,null,null,null,null,null,null,null,{"$f":"B1","v":"Eurotrial 2019 - Finland"},null,null,null,null,null,null,null,null,null,null,{"$f":"B1","v":"Eurotrial 2019 - Finland"},null,null,null,null,null,null,null,null,null,null,{"$f":"B1","v":"Eurotrial 2019 - Finland"},null,null,null,null,null,null,null,null,null,null,{"$f":"B1","v":"Eurotrial 2019 - Finland"},null,null,null,null,null,null,null,null,null,null,{"$f":"B1","v":"Eurotrial 2019 - Finland"},null,null,null,null,null,null,null,null,null,null,{"$f":"B1","v":"Eurotrial 2019 - Finland"},null,null,null,null,null,null,null,null,null,null,{"$f":"B1","v":"Eurotrial 2019 - Finland"},null,null,null,null,null,null,null,null,null,null,{"$f":"B1","v":"Eurotrial 2019 - Finland"},null,null,null,null,null,null,null,null,null,null,{"$f":"B1","v":"Eurotrial 2019 - Finland"},null,null,null,null,null,null,null,null,null,null,{"$f":"B1","v":"Eurotrial 2019 - Finland"},null,null,null,null,null,null,null,null,null,null,{"$f":"B1","v":"Eurotrial 2019 - Finland"},null,null,null,null,null,null,null,null,null,null,{"$f":"B1","v":"Eurotrial 2019 - Finland"},null,null,null,null,null,null,null,null,null,null,{"$f":"B1","v":"Eurotrial 2019 - Finland"}]
[null,"Class: Original",null,null,null,null,null,null,null,null,null,null,null,null,null,null,null,null,null,null,null,null,null,null,null,null,{"$f":"B2","v":"Class: Original"},null,null,null,null,null,null,null,null,null,{"$f":"B2","v":"Class: Original"},null,null,null,null,null,null,null,null,null,null,{"$f":"B2","v":"Class: Original"},null,null,null,null,null,null,null,null,null,null,{"$f":"B2","v":"Class: Original"},null,null,null,null,null,null,null,null,null,null,{"$f":"B2","v":"Class: Original"},null,null,null,null,null,null,null,null,null,null,{"$f":"B2","v":"Class: Original"},null,null,null,null,null,null,null,null,null,null,{"$f":"B2","v":"Class: Original"},null,null,null,null,null,null,null,null,null,null,{"$f":"B2","v":"Class: Original"},null,null,null,null,null,null,null,null,null,null,{"$f":"B2","v":"Class: Original"},null,null,null,null,null,null,null,null,null,null,{"$f":"B2","v":"Class: Original"},null,null,null,null,null,null,null,null,null,null,{"$f":"B2","v":"Class: Original"},null,null,null,null,null,null,null,null,null,null,{"$f":"B2","v":"Class: Original"},null,null,null,null,null,null,null,null,null,null,{"$f":"B2","v":"Class: Original"},null,null,null,null,null,null,null,null,null,null,{"$f":"B2","v":"Class: Original"},null,null,null,null,null,null,null,null,null,null,{"$f":"B2","v":"Class: Original"},null,null,null,null,null,null,null,null,null,null,{"$f":"B2","v":"Class: Original"},null,null,null,null,null,null,null,null,null,null,{"$f":"B2","v":"Class: Original"}]
[null,null,null,null,null,null,null,null,null,null,null,null,null,null,null,null,null,null,null,null,null,null,null,null,null,null,null,null,null,null,null,null,null,null,null,null,"Section 1.",null,"Section 1.",null,"Section 1.",null,"Section 1.",null,"Section 1.",null,null,"Section 2.",null,"Section 2.",null,"Section 2.",null,"Section 2.",null,"Section 2.",null,null,"Section 3.",null,"Section 3.",null,"Section 3.",null,"Section 3.",null,"Section 3.",null,null,"Section 4.",null,"Section 4.",null,"Section 4.",null,"Section 4.",null,"Section 4.",null,null,"Section 5.",null,"Section 5.",null,"Section 5.",null,"Section 5.",null,"Section 5.",null,null,"Section 6.",null,"Section 6.",null,"Section 6.",null,"Section 6.",null,"Section 6.",null,null,"Section 7.",null,"Section 7.",null,"Section 7.",null,"Section 7.",null,"Section 7.",null,null,"Section 8.",null,"Section 8.",null,"Section 8.",null,"Section 8.",null,"Section 8.",null,null,"Section 9.",null,"Section 9.",null,"Section 9.",null,"Section 9.",null,"Section 9.",null,null,"Section 10.",null,"Section 10.",null,"Section 10.",null,"Section 10.",null,"Section 10.",null,null,"Section 11.",null,"Section 11.",null,"Section 11.",null,"Section 11.",null,"Section 11.",null,null,"Section 12.",null,"Section 12.",null,"Section 12.",null,"Section 12.",null,"Section 12.",null,null,"Section 13.",null,"Section 13.",null,"Section 13.",null,"Section 13.",null,"Section 13.",null,null,"Section 14.",null,"Section 14.",null,"Section 14.",null,"Section 14.",null,"Section 14.",null,null,"Section 15.",null,"Section 15.",null,"Section 15.",null,"Section 15.",null,"Section 15",null,null,"Section 16.",null,"Section 16.",null,"Section 16.",null,"Section 16.",null,"Section 16."]
[null,"Pos.","Race #","Car","Driver","Co-Driver","Country","1.","2.","3.","4.","5.","6.","7.","8.",9,10,11,12,13,14,15,16,"Total",null,null,"Race #","Car reverse points","DNF (1 if DNF)","Ended race","Order change (1 = go higher)",null,"Result points, do not change",null,null,null,"Race #","Touching / Driving under (5)","Broken post / stick (25)","Reverse","Not Passed Gate (50)","Section not completed (50)","Not driven section (500)","Comment","Clean (y = ok)","Total",null,"Race #","Touching / Driving under (5)","Broken post / stick (25)","Reverse","Not Passed Gate (50)","Section not completed (50)","Not driven section (500)","Comment","Clean (y = ok)","Total",null,"Race #","Touching / Driving under (5)","Broken post / stick (25)","Reverse","Not Passed Gate (50)","Section not completed (50)","Not driven section (500)","Comment","Clean (y = ok)","Total",null,"Race #","Touching / Driving under (5)","Broken post / stick (25)","Reverse","Not Passed Gate (50)","Section not completed (50)","Not driven section (500)","Comment","Clean (y = ok)","Total",null,"Race #","Touching / Driving under (5)","Broken post / stick (25)","Reverse","Not Passed Gate (50)","Section not completed (50)","Not driven section (500)","Comment","Clean (y = ok)","Total",null,"Race #","Touching / Driving under (5)","Broken post / stick (25)","Reverse","Not Passed Gate (50)","Section not completed (50)","Not driven section (500)","Comment","Clean (y = ok)","Total",null,"Race #","Touching / Driving under (5)","Broken post / stick (25)","Reverse","Not Passed Gate (50)","Section not completed (50)","Not driven section (500)","Comment","Clean (y = ok)","Total",null,"Race #","Touching / Driving under (5)","Broken post / stick (25)","Reverse","Not Passed Gate (50)","Section not completed (50)","Not driven section (500)","Comment","Clean (y = ok)","Total",null,"Race #","Touching / Driving under (5)","Broken post / stick (25)","Reverse","Not Passed Gate (50)","Section not completed (50)","Not driven section (500)","Comment","Clean (y = ok)","Total",null,"Race #","Touching / Driving under (5)","Broken post / stick (25)","Reverse","Not Passed Gate (50)","Section not completed (50)","Not driven section (500)","Comment","Clean (y = ok)","Total",null,"Race #","Touching / Driving under (5)","Broken post / stick (25)","Reverse","Not Passed Gate (50)","Section not completed (50)","Not driven section (500)","Comment","Clean (y = ok)","Total",null,"Race #","Touching / Driving under (5)","Broken post / stick (25)","Reverse","Not Passed Gate (50)","Section not completed (50)","Not driven section (500)","Comment","Clean (y = ok)","Total",null,"Race #","Touching / Driving under (5)","Broken post / stick (25)","Reverse","Not Passed Gate (50)","Section not completed (50)","Not driven section (500)","Comment","Clean (y = ok)","Total",null,"Race #","Touching / Driving under (5)","Broken post / stick (25)","Reverse","Not Passed Gate (50)","Section not completed (50)","Not driven section (500)","Comment","Clean (y = ok)","Total",null,"Race #","Touching / Driving under (5)","Broken post / stick (25)","Reverse","Not Passed Gate (50)","Section not completed (50)","Not driven section (500)","Comment","Clean (y = ok)","Total",null,"Race #","Touching / Driving under (5)","Broken post / stick (25)","Reverse","Not Passed Gate (50)","Section not completed (50)","Not driven section (500)","Comment","Clean (y = ok)","Total"]
[null,{"$f":"IF(C5=0,\"\",ROW(C5)-4)","v":1},105,"Suzuki Samurai -96","Eigner Mihaly","Grunwald Pal","HUN",{"$f":"IF(C5=0,\"\",IF(OR(AS5=\"y\",AT5<>0),AT5,\" -\"))","v":10},{"$f":"IF(C5=0,\"\",IF(OR(BD5=\"y\",BE5<>0),BE5,\" -\"))","v":25},{"$f":"IF(C5=0,\"\",IF(OR(BO5=\"y\",BP5<>0),BP5,\" -\"))","v":30},{"$f":"IF(C5=0,\"\",IF(OR(CA5<>0,BZ5=\"y\"),CA5,\" -\"))","v":10},{"$f":"IF(C5=0,\"\",IF(OR(CL5<>0,CK5=\"y\"),CL5,\" -\"))","v":15},{"$f":"IF(C5=0,\"\",IF(OR(CW5<>0,CV5=\"y\"),CW5,\" -\"))","v":60},{"$f":"IF(C5=0,\"\",IF(OR(DH5<>0,DG5=\"y\"),DH5,\" -\"))","v":20},{"$f":"IF(C5=0,\"\",IF(OR(DS5<>0,DR5=\"y\"),DS5,\" -\"))","v":10},{"$f":"IF(C5=0,\"\",IF(OR(ED5<>0,EC5=\"y\"),ED5,\" -\"))","v":10},{"$f":"IF(C5=0,\"\",IF(OR(EO5<>0,EN5=\"y\"),EO5,\" -\"))","v":30},{"$f":"IF(C5=0,\"\",IF(OR(EZ5<>0,EY5=\"y\"),EZ5,\" -\"))","v":35},{"$f":"IF(C5=0,\"\",IF(OR(FK5<>0,FJ5=\"y\"),FK5,\" -\"))","v":35},{"$f":"IF(C5=0,\"\",IF(OR(FV5<>0,FU5=\"y\"),FV5,\" -\"))","v":35},{"$f":"IF(C5=0,\"\",IF(OR(GG5<>0,GF5=\"y\"),GG5,\" -\"))","v":285},{"$f":"IF(C5=0,\"\",IF(OR(GR5<>0,GQ5=\"y\"),GR5,\" -\"))","v":10},{"$f":"IF(C5=0,\"\",IF(OR(HC5<>0,HB5=\"y\"),HC5,\" -\"))","v":10},{"$f":"IF(C5=0,\"\",IF(AC5=1,\"DNF\",IF(AD5<>1,\"~ \"&SUM(H5:W5),SUM(H5:W5))))","v":630},null,null,{"$f":"IF(C5<>\"\",C5,\"\")","v":105},5,null,1,null,null,{"$f":"IF(C5=0,99999,IF(AC5=1,9999,SUM(H5:W5)-AE5))","v":630},null,null,null,{"$f":"IF(C5<>\"\",C5,\"\")","v":105},null,null,2,null,null,null,null,null,{"$f":"IF(AS5=\"y\",0,IF(AQ5<>0,500,AL5*5+AM5*25+AN5*$AB5+AO5*50+AP5*50))","v":10},null,{"$f":"IF(C5<>\"\",C5,\"\")","v":105},null,null,5,null,null,null,null,null,{"$f":"IF(BD5=\"y\",0,IF(BB5<>0,500,AW5*5+AX5*25+AY5*$AB5+AZ5*50+BA5*50))","v":25},null,{"$f":"IF(C5<>\"\",C5,\"\")","v":105},null,1,1,null,null,null,null,null,{"$f":"IF(BO5=\"y\",0,IF(BM5<>0,500,BH5*5+BI5*25+BJ5*$AB5+BK5*50+BL5*50))","v":30},null,{"$f":"IF(C5<>\"\",C5,\"\")","v":105},null,null,2,null,null,null,null,null,{"$f":"IF(BZ5=\"y\",0,IF(BX5<>0,500,BS5*5+BT5*25+BU5*$AB5+BV5*50+BW5*50))","v":10},null,{"$f":"IF(C5<>\"\",C5,\"\")","v":105},null,null,3,null,null,null,null,null,{"$f":"IF(CK5=\"y\",0,IF(CI5<>0,500,CD5*5+CE5*25+CF5*$AB5+CG5*50+CH5*50))","v":15},null,{"$f":"IF(C5<>\"\",C5,\"\")","v":105},1,1,6,null,null,null,null,null,{"$f":"IF(CV5=\"y\",0,IF(CT5<>0,500,CO5*5+CP5*25+CQ5*$AB5+CR5*50+CS5*50))","v":60},null,{"$f":"IF(C5<>\"\",C5,\"\")","v":105},1,null,3,null,null,null,null,null,{"$f":"IF(DG5=\"y\",0,IF(DE5<>0,500,CZ5*5+DA5*25+DB5*$AB5+DC5*50+DD5*50))","v":20},null,{"$f":"IF(C5<>\"\",C5,\"\")","v":105},null,null,2,null,null,null,null,null,{"$f":"IF(DR5=\"y\",0,IF(DP5<>0,500,DK5*5+DL5*25+DM5*$AB5+DN5*50+DO5*50))","v":10},null,{"$f":"IF(C5<>\"\",C5,\"\")","v":105},null,null,2,null,null,null,null,null,{"$f":"IF(EC5=\"y\",0,IF(EA5<>0,500,DV5*5+DW5*25+DX5*$AB5+DY5*50+DZ5*50))","v":10},null,{"$f":"IF(C5<>\"\",C5,\"\")","v":105},null,null,6,null,null,null,null,null,{"$f":"IF(EN5=\"y\",0,IF(EL5<>0,500,EG5*5+EH5*25+EI5*$AB5+EJ5*50+EK5*50))","v":30},null,{"$f":"IF(C5<>\"\",C5,\"\")","v":105},null,1,2,null,null,null,null,null,{"$f":"IF(EY5=\"y\",0,IF(EW5<>0,500,ER5*5+ES5*25+ET5*$AB5+EU5*50+EV5*50))","v":35},null,{"$f":"IF(C5<>\"\",C5,\"\")","v":105},null,1,2,null,null,null,null,null,{"$f":"IF(FJ5=\"y\",0,IF(FH5<>0,500,FC5*5+FD5*25+FE5*$AB5+FF5*50+FG5*50))","v":35},null,{"$f":"IF(C5<>\"\",C5,\"\")","v":105},null,null,7,null,null,null,null,null,{"$f":"IF(FU5=\"y\",0,IF(FS5<>0,500,FN5*5+FO5*25+FP5*$AB5+FQ5*50+FR5*50))","v":35},null,{"$f":"IF(C5<>\"\",C5,\"\")","v":105},2,2,5,3,1,null,null,null,{"$f":"IF(GF5=\"y\",0,IF(GD5<>0,500,FY5*5+FZ5*25+GA5*$AB5+GB5*50+GC5*50))","v":285},null,{"$f":"IF(C5<>\"\",C5,\"\")","v":105},null,null,2,null,null,null,null,null,{"$f":"IF(GQ5=\"y\",0,IF(GO5<>0,500,GJ5*5+GK5*25+GL5*$AB5+GM5*50+GN5*50))","v":10},null,{"$f":"IF(C5<>\"\",C5,\"\")","v":105},null,null,2,null,null,null,null,null,{"$f":"IF(HB5=\"y\",0,IF(GZ5<>0,500,GU5*5+GV5*25+GW5*$AB5+GX5*50+GY5*50))","v":10}]
[null,2,108,"Suzuki LJ80 -76","Grigorenko Dmitrii","Vasyagina Anastasiya","RUS ",25,24,10,46,29,196,8,13,120,20,4,21,111,50,8,62,747,null,null,108,4,null,1,null,null,747,null,null,null,108,null,1,null,null,null,null,null,null,25,null,108,null,null,6,null,null,null,null,null,24,null,108,2,null,null,null,null,null,null,null,10,null,108,1,1,4,null,null,null,null,null,46,null,108,1,null,6,null,null,null,null,null,29,null,108,1,1,4,2,1,null,null,null,196,null,108,null,null,2,null,null,null,null,null,8,null,108,1,null,2,null,null,null,null,null,13,null,108,null,null,5,1,1,null,"time",null,120,null,108,null,null,5,null,null,null,null,null,20,null,108,null,null,1,null,null,null,null,null,4,null,108,1,null,4,null,null,null,null,null,21,null,108,null,1,9,null,1,null,null,null,111,null,108,1,1,5,null,null,null,null,null,50,null,108,null,null,2,null,null,null,null,null,8,null,108,null,null,3,null,1,null,null,null,62]
[null,3,104,"Suzuki LJ80","Kobylka Sr Jiri","Cerna Vlasta","CZE",6,18,0,6,23,98,74,18,6,12,265,31,155,40,12,36,800,null,null,104,6,null,1,null,null,800,null,null,null,104,null,null,1,null,null,null,null,null,6,null,104,null,null,3,null,null,null,null,null,18,null,104,null,null,null,null,null,null,null,"y",0,null,104,null,null,1,null,null,null,null,null,6,null,104,1,null,3,null,null,null,null,null,23,null,104,1,1,3,null,1,null,null,null,98,null,104,null,2,4,null,null,null,null,null,74,null,104,null,null,3,null,null,null,null,null,18,null,104,null,null,1,null,null,null,null,null,6,null,104,null,null,2,null,null,null,null,null,12,null,104,2,1,5,3,1,null,null,null,265,null,104,null,1,1,null,null,null,null,null,31,null,104,null,1,5,1,1,null,null,null,155,null,104,2,null,5,null,null,null,null,null,40,null,104,null,null,2,null,null,null,null,null,12,null,104,null,null,6,null,null,null,null,null,36]
[null,4,101,"Suzuki LJ80","Brügger Markus",null,"CHE",0,187,0,11,59,23,0,12,131,18,37,35,92,206,6,6,823,null,null,101,6,null,1,null,null,823,null,null,null,101,null,null,null,null,null,null,null,"y",0,null,101,null,1,2,2,1,null,"rollover",null,187,null,101,null,null,null,null,null,null,null,"y",0,null,101,1,null,1,null,null,null,null,null,11,null,101,2,1,4,null,null,null,null,null,59,null,101,1,null,3,null,null,null,null,null,23,null,101,null,null,null,null,null,null,null,"y",0,null,101,null,null,2,null,null,null,null,null,12,null,101,null,1,1,1,1,null,null,null,131,null,101,null,null,3,null,null,null,null,null,18,null,101,null,1,2,null,null,null,null,null,37,null,101,1,null,5,null,null,null,null,null,35,null,101,null,null,7,null,1,null,null,null,92,null,101,null,null,1,3,1,null,null,null,206,null,101,null,null,1,null,null,null,null,null,6,null,101,null,null,1,null,null,null,null,null,6]
[null,5,112,"Toyota LJ RJ70","Sinisalo Tarmo","Uimonen Mika","FIN",18,20,20,25,24,187,78,3,209,17,65,9,161,40,19,46,941,null,null,112,3,null,1,null,null,941,null,null,null,112,null,null,6,null,null,null,null,null,18,null,112,1,null,5,null,null,null,null,null,20,null,112,1,null,5,null,null,null,null,null,20,null,112,2,null,5,null,null,null,null,null,25,null,112,null,null,8,null,null,null,null,null,24,null,112,null,1,4,2,1,null,"stuck",null,187,null,112,null,3,1,null,null,null,null,null,78,null,112,null,null,1,null,null,null,null,null,3,null,112,null,null,3,3,1,null,null,null,209,null,112,1,null,4,null,null,null,null,null,17,null,112,null,2,5,null,null,null,null,null,65,null,112,null,null,3,null,null,null,null,null,9,null,112,1,null,2,2,1,null,"reversed back to gate",null,161,null,112,5,null,5,null,null,null,null,null,40,null,112,2,null,3,null,null,null,null,null,19,null,112,null,1,7,null,null,null,null,null,46]
[null,6,111,"Suzuki Samurai SJ413","Ziubanov Aleksey","Shatkov Roman","RUS",5,155,65,15,50,135,15,60,35,25,10,45,45,255,20,20,955,null,null,111,5,null,1,null,null,955,null,null,null,111,null,null,1,null,null,null,null,null,5,null,111,null,null,1,2,1,null,"time",null,155,null,111,3,1,5,null,null,null,null,null,65,null,111,1,null,2,null,null,null,null,null,15,null,111,4,null,6,null,null,null,null,null,50,null,111,null,null,7,1,1,null,null,null,135,null,111,null,null,3,null,null,null,null,null,15,null,111,null,1,7,null,null,null,null,null,60,null,111,null,1,2,null,null,null,null,null,35,null,111,null,null,5,null,null,null,null,null,25,null,111,null,null,2,null,null,null,null,null,10,null,111,null,1,4,null,null,null,null,null,45,null,111,3,null,6,null,null,null,null,null,45,null,111,null,null,1,4,1,null,null,null,255,null,111,1,null,3,null,null,null,null,null,20,null,111,null,null,4,null,null,null,null,null,20]
[null,7,106,"Suzuki Santana 98","Grunwald Pal","Nemeth Laszlo","HUN",20,25,5,15,15,160,80,35,15,20,255,10,215,210,20,25,1125,null,null,106,5,null,1,null,null,1125,null,null,null,106,null,null,4,null,null,null,null,null,20,null,106,null,null,5,null,null,null,null,null,25,null,106,null,null,1,null,null,null,null,null,5,null,106,null,null,3,null,null,null,null,null,15,null,106,null,null,3,null,null,null,null,null,15,null,106,2,null,10,1,1,null,null,null,160,null,106,null,3,1,null,null,null,null,null,80,null,106,null,1,2,null,null,null,null,null,35,null,106,null,null,3,null,null,null,null,null,15,null,106,null,null,4,null,null,null,null,null,20,null,106,1,1,5,3,1,null,null,null,255,null,106,null,null,2,null,null,null,null,null,10,null,106,1,1,7,2,1,null,null,null,215,null,106,1,null,1,3,1,null,null,null,210,null,106,null,null,4,null,null,null,null,null,20,null,106,null,null,5,null,null,null,null,null,25]
[null,8,107,"Suzuki Jimny","Konya Janos","Takacs Fanni","HUN",29,20,18,12,171,71,112,4,162,49,277,42,90,93,91,62,1303,null,null,107,4,null,1,null,null,1303,null,null,null,107,null,1,1,null,null,null,null,null,29,null,107,null,null,5,null,null,null,null,null,20,null,107,2,null,2,null,null,null,null,null,18,null,107,null,null,3,null,null,null,null,null,12,null,107,1,null,4,2,1,null,null,null,171,null,107,2,1,9,null,null,null,null,null,71,null,107,null,null,3,1,1,null,null,null,112,null,107,null,null,1,null,null,null,null,null,4,null,107,null,null,3,2,1,null,null,null,162,null,107,1,null,11,null,null,null,null,null,49,null,107,null,1,13,3,1,null,null,null,277,null,107,1,1,3,null,null,null,null,null,42,null,107,null,null,10,null,1,null,null,null,90,null,107,2,1,2,null,1,null,"stuck",null,93,null,107,null,3,4,null,null,null,null,null,91,null,107,null,null,3,null,1,null,null,null,62]
[null,9,113,null,"Vesa Muikku","Petrica Ionita","ITA",6,17,69,152,38,231,17,31,29,162,234,38,69,139,139,108,1479,null,null,113,2,null,1,null,null,1479,null,null,null,113,null,null,3,null,null,null,null,null,6,null,113,1,null,6,null,null,null,null,null,17,null,113,1,2,7,null,null,null,null,null,69,null,113,null,null,1,2,1,null,null,null,152,null,113,1,1,4,null,null,null,null,null,38,null,113,null,1,3,3,1,null,null,null,231,null,113,1,null,6,null,null,null,null,null,17,null,113,null,1,3,null,null,null,null,null,31,null,113,null,1,2,null,null,null,null,null,29,null,113,2,null,1,2,1,null,null,null,162,null,113,1,1,2,3,1,null,null,null,234,null,113,1,1,4,null,null,null,null,null,38,null,113,1,2,7,null,null,null,null,null,69,null,113,null,1,7,1,1,null,null,null,139,null,113,3,null,12,1,1,null,"time",null,139,null,113,null,null,4,1,1,null,null,null,108]
[null,10,102,"Toyota FJ40 -82","Landis Werner","Landis Tamara","CHE",158,238,204,37,49,307,53,140,178,43,245,221,195,290,49,116,2523,null,null,102,4,null,1,null,null,2523,null,null,null,102,null,null,2,2,1,null,null,null,158,null,102,2,null,7,3,1,null,"time",null,238,null,102,null,null,1,3,1,null,null,null,204,null,102,null,1,3,null,null,null,null,null,37,null,102,null,1,6,null,null,null,null,null,49,null,102,1,null,13,4,1,null,null,null,307,null,102,null,1,7,null,null,null,null,null,53,null,102,null,null,10,1,1,null,"time",null,140,null,102,null,null,7,2,1,null,null,null,178,null,102,3,null,7,null,null,null,null,null,43,null,102,null,1,5,3,1,null,null,null,245,null,102,1,null,4,3,1,null,null,null,221,null,102,null,1,5,2,1,null,null,null,195,null,102,null,null,10,4,1,null,null,null,290,null,102,null,1,6,null,null,null,null,null,49,null,102,null,null,4,1,1,null,null,null,116]
[null,11,109,"Suzuki Jimny","Gromoboev Pavel","Bazanov Denis","RUS ",23,123,170,17,500,500,500,206,250,265,206,243,254,228,250,250,3985,null,null,109,3,null,1,null,null,3985,null,null,null,109,1,null,6,null,null,null,null,null,23,null,109,1,null,6,1,1,null,"time",null,123,null,109,1,null,5,2,1,null,"time",null,170,null,109,1,null,4,null,null,null,null,null,17,null,109,null,null,null,null,null,1,null,null,500,null,109,null,null,null,null,null,1,null,null,500,null,109,null,null,null,null,null,1,null,null,500,null,109,null,null,2,3,1,null,null,null,206,null,109,null,null,null,4,1,null,null,null,250,null,109,null,null,5,4,1,null,null,null,265,null,109,null,null,2,3,1,null,null,null,206,null,109,null,1,6,3,1,null,null,null,243,null,109,1,1,8,3,1,null,null,null,254,null,109,null,1,1,3,1,null,"stuck",null,228,null,109,null,null,null,4,1,null,null,null,250,null,109,null,null,null,4,1,null,null,null,250]
[null,12,103,"Suzuki SJ413","Plattner Hans",null,"CHE",50,40,200,200,140,290,180,35,500,500,500,500,500,500,500,305,4940,null,null,103,5,null,1,null,null,4940,null,null,null,103,null,1,5,null,null,null,null,null,50,null,103,2,null,6,null,null,null,null,null,40,null,103,null,null,null,3,1,null,null,null,200,null,103,1,null,9,2,1,null,null,null,200,null,103,1,null,7,1,1,null,null,null,140,null,103,null,null,8,4,1,null,null,null,290,null,103,null,1,1,2,1,null,null,null,180,null,103,null,null,7,null,null,null,null,null,35,null,103,null,null,null,null,null,1,null,null,500,null,103,null,null,null,null,null,1,null,null,500,null,103,null,null,null,null,null,1,null,null,500,null,103,null,null,null,null,null,1,null,null,500,null,103,null,null,null,null,null,1,null,null,500,null,103,null,null,null,null,null,1,null,null,500,null,103,null,null,null,null,null,1,null,null,500,null,103,1,null,10,4,1,null,null,null,305]
[null,"",null,null,null,null,null,"","","","","","","","","","","","","","","","","",null,null,"",null,null,null,null,null,99999,null,null,null,"",null,null,null,null,null,null,null,null,0,null,{"$f":"IF(C17<>\"\",C17,\"\")","v":""},null,null,null,null,null,null,null,null,0,null,"",null,null,null,null,null,null,null,null,0,null,"",null,null,null,null,null,null,null,null,0,null,"",null,null,null,null,null,null,null,null,0,null,"",null,null,null,null,null,null,null,null,0,null,"",null,null,null,null,null,null,null,null,0,null,"",null,null,null,null,null,null,null,null,0,null,"",null,null,null,null,null,null,null,null,0,null,"",null,null,null,null,null,null,null,null,0,null,"",null,null,null,null,null,null,null,null,0,null,"",null,null,null,null,null,null,null,null,0,null,"",null,null,null,null,null,null,null,null,0,null,"",null,null,null,null,null,null,null,null,0,null,"",null,null,null,null,null,null,null,null,0,null,"",null,null,null,null,null,null,null,null,0]
[]
[]
[]
[null,null,null,null," "]

{"sheet":"Standard","index":2,"n_rows":25,"n_cols":211,"rows_kept":25,"cut":false,"hidden":false,"merged":[[0,14,0,22]]}
[null,"Eurotrial 2019 - Finland",null,null,null,null,null,null,null,null,null,null,null,null,{"$f":"NOW()","v":"2019-08-11T21:53:47.970"},null,null,null,null,null,null,null,null,null,null,null,{"$f":"B1","v":"Eurotrial 2019 - Finland"},null,null,null,null,null,null,null,null,null,{"$f":"B1","v":"Eurotrial 2019 - Finland"},null,null,null,null,null,null,null,null,null,null,{"$f":"B1","v":"Eurotrial 2019 - Finland"},null,null,null,null,null,null,null,null,null,null,{"$f":"B1","v":"Eurotrial 2019 - Finland"},null,null,null,null,null,null,null,null,null,null,{"$f":"B1","v":"Eurotrial 2019 - Finland"},null,null,null,null,null,null,null,null,null,null,{"$f":"B1","v":"Eurotrial 2019 - Finland"},null,null,null,null,null,null,null,null,null,null,{"$f":"B1","v":"Eurotrial 2019 - Finland"},null,null,null,null,null,null,null,null,null,null,{"$f":"B1","v":"Eurotrial 2019 - Finland"},null,null,null,null,null,null,null,null,null,null,{"$f":"B1","v":"Eurotrial 2019 - Finland"},null,null,null,null,null,null,null,null,null,null,{"$f":"B1","v":"Eurotrial 2019 - Finland"},null,null,null,null,null,null,null,null,null,null,{"$f":"B1","v":"Eurotrial 2019 - Finland"},null,null,null,null,null,null,null,null,null,null,{"$f":"B1","v":"Eurotrial 2019 - Finland"},null,null,null,null,null,null,null,null,null,null,{"$f":"B1","v":"Eurotrial 2019 - Finland"},null,null,null,null,null,null,null,null,null,null,{"$f":"B1","v":"Eurotrial 2019 - Finland"},null,null,null,null,null,null,null,null,null,null,{"$f":"B1","v":"Eurotrial 2019 - Finland"},null,null,null,null,null,null,null,null,null,null,{"$f":"B1","v":"Eurotrial 2019 - Finland"},null,null,null,null,null,null,null,null,null,null,{"$f":"B1","v":"Eurotrial 2019 - Finland"}]
[null,"Class: Standard",null,null,null,null,null,null,null,null,null,null,null,null,null,null,null,null,null,null,null,null,null,null,null,null,{"$f":"B2","v":"Class: Standard"},null,null,null,null,null,null,null,null,null,{"$f":"B2","v":"Class: Standard"},null,null,null,null,null,null,null,null,null,null,{"$f":"B2","v":"Class: Standard"},null,null,null,null,null,null,null,null,null,null,{"$f":"B2","v":"Class: Standard"},null,null,null,null,null,null,null,null,null,null,{"$f":"B2","v":"Class: Standard"},null,null,null,null,null,null,null,null,null,null,{"$f":"B2","v":"Class: Standard"},null,null,null,null,null,null,null,null,null,null,{"$f":"B2","v":"Class: Standard"},null,null,null,null,null,null,null,null,null,null,{"$f":"B2","v":"Class: Standard"},null,null,null,null,null,null,null,null,null,null,{"$f":"B2","v":"Class: Standard"},null,null,null,null,null,null,null,null,null,null,{"$f":"B2","v":"Class: Standard"},null,null,null,null,null,null,null,null,null,null,{"$f":"B2","v":"Class: Standard"},null,null,null,null,null,null,null,null,null,null,{"$f":"B2","v":"Class: Standard"},null,null,null,null,null,null,null,null,null,null,{"$f":"B2","v":"Class: Standard"},null,null,null,null,null,null,null,null,null,null,{"$f":"B2","v":"Class: Standard"},null,null,null,null,null,null,null,null,null,null,{"$f":"B2","v":"Class: Standard"},null,null,null,null,null,null,null,null,null,null,{"$f":"B2","v":"Class: Standard"},null,null,null,null,null,null,null,null,null,null,{"$f":"B2","v":"Class: Standard"}]
[null,null,null,null,null,null,null,null,null,null,null,null,null,null,null,null,null,null,null,null,null,null,null,null,null,null,null,null,null,null,null,null,null,null,null,null,"Section 1.",null,"Section 1.",null,"Section 1.",null,"Section 1.",null,"Section 1.",null,null,"Section 2.",null,"Section 2.",null,"Section 2.",null,"Section 2.",null,"Section 2.",null,null,"Section 3.",null,"Section 3.",null,"Section 3.",null,"Section 3.",null,"Section 3.",null,null,"Section 4.",null,"Section 4.",null,"Section 4.",null,"Section 4.",null,"Section 4.",null,null,"Section 5.",null,"Section 5.",null,"Section 5.",null,"Section 5.",null,"Section 5.",null,null,"Section 6.",null,"Section 6.",null,"Section 6.",null,"Section 6.",null,"Section 6.",null,null,"Section 7.",null,"Section 7.",null,"Section 7.",null,"Section 7.",null,"Section 7.",null,null,"Section 8.",null,"Section 8.",null,"Section 8.",null,"Section 8.",null,"Section 8.",null,null,"Section 9.",null,"Section 9.",null,"Section 9.",null,"Section 9.",null,"Section 9.",null,null,"Section 10.",null,"Section 10.",null,"Section 10.",null,"Section 10.",null,"Section 10.",null,null,"Section 11.",null,"Section 11.",null,"Section 11.",null,"Section 11.",null,"Section 11.",null,null,"Section 12.",null,"Section 12.",null,"Section 12.",null,"Section 12.",null,"Section 12.",null,null,"Section 13.",null,"Section 13.",null,"Section 13.",null,"Section 13.",null,"Section 13.",null,null,"Section 14.",null,"Section 14.",null,"Section 14.",null,"Section 14.",null,"Section 14.",null,null,"Section 15.",null,"Section 15.",null,"Section 15.",null,"Section 15.",null,"Section 15",null,null,"Section 16.",null,"Section 16.",null,"Section 16.",null,"Section 16.",null,"Section 16."]
[null,"Pos.","Race #","Car","Driver","Co-Driver","Country","1.","2.","3.","4.","5.","6.","7.","8.",9,10,11,12,13,14,15,16,"Total",null,null,"Race #","Car reverse points","DNF (1 if DNF)","Ended race","Order change (1 = go higher)",null,"Result points, do not change",null,null,null,"Race #","Touching / Driving under (5)","Broken post / stick (25)","Reverse","Not Passed Gate (50)","Section not completed (50)","Not driven section (500)","Comment","Clean (y = ok)","Total",null,"Race #","Touching / Driving under (5)","Broken post / stick (25)","Reverse","Not Passed Gate (50)","Section not completed (50)","Not driven section (500)","Comment","Clean (y = ok)","Total",null,"Race #","Touching / Driving under (5)","Broken post / stick (25)","Reverse","Not Passed Gate (50)","Section not completed (50)","Not driven section (500)","Comment","Clean (y = ok)","Total",null,"Race #","Touching / Driving under (5)","Broken post / stick (25)","Reverse","Not Passed Gate (50)","Section not completed (50)","Not driven section (500)","Comment","Clean (y = ok)","Total",null,"Race #","Touching / Driving under (5)","Broken post / stick (25)","Reverse","Not Passed Gate (50)","Section not completed (50)","Not driven section (500)","Comment","Clean (y = ok)","Total",null,"Race #","Touching / Driving under (5)","Broken post / stick (25)","Reverse","Not Passed Gate (50)","Section not completed (50)","Not driven section (500)","Comment","Clean (y = ok)","Total",null,"Race #","Touching / Driving under (5)","Broken post / stick (25)","Reverse","Not Passed Gate (50)","Section not completed (50)","Not driven section (500)","Comment","Clean (y = ok)","Total",null,"Race #","Touching / Driving under (5)","Broken post / stick (25)","Reverse","Not Passed Gate (50)","Section not completed (50)","Not driven section (500)","Comment","Clean (y = ok)","Total",null,"Race #","Touching / Driving under (5)","Broken post / stick (25)","Reverse","Not Passed Gate (50)","Section not completed (50)","Not driven section (500)","Comment","Clean (y = ok)","Total",null,"Race #","Touching / Driving under (5)","Broken post / stick (25)","Reverse","Not Passed Gate (50)","Section not completed (50)","Not driven section (500)","Comment","Clean (y = ok)","Total",null,"Race #","Touching / Driving under (5)","Broken post / stick (25)","Reverse","Not Passed Gate (50)","Section not completed (50)","Not driven section (500)","Comment","Clean (y = ok)","Total",null,"Race #","Touching / Driving under (5)","Broken post / stick (25)","Reverse","Not Passed Gate (50)","Section not completed (50)","Not driven section (500)","Comment","Clean (y = ok)","Total",null,"Race #","Touching / Driving under (5)","Broken post / stick (25)","Reverse","Not Passed Gate (50)","Section not completed (50)","Not driven section (500)","Comment","Clean (y = ok)","Total",null,"Race #","Touching / Driving under (5)","Broken post / stick (25)","Reverse","Not Passed Gate (50)","Section not completed (50)","Not driven section (500)","Comment","Clean (y = ok)","Total",null,"Race #","Touching / Driving under (5)","Broken post / stick (25)","Reverse","Not Passed Gate (50)","Section not completed (50)","Not driven section (500)","Comment","Clean (y = ok)","Total",null,"Race #","Touching / Driving under (5)","Broken post / stick (25)","Reverse","Not Passed Gate (50)","Section not completed (50)","Not driven section (500)","Comment","Clean (y = ok)","Total"]
[null,{"$f":"IF(C5=0,\"\",ROW(C5)-4)","v":1},216,"MB G -82","Huhtala Jani","Huhtala Visa","FIN",{"$f":"IF(C5=0,\"\",IF(OR(AS5=\"y\",AT5<>0),AT5,\" -\"))","v":37},{"$f":"IF(C5=0,\"\",IF(OR(BD5=\"y\",BE5<>0),BE5,\" -\"))","v":45},{"$f":"IF(C5=0,\"\",IF(OR(BO5=\"y\",BP5<>0),BP5,\" -\"))","v":90},{"$f":"IF(C5=0,\"\",IF(OR(CA5<>0,BZ5=\"y\"),CA5,\" -\"))","v":30},{"$f":"IF(C5=0,\"\",IF(OR(CL5<>0,CK5=\"y\"),CL5,\" -\"))","v":22},{"$f":"IF(C5=0,\"\",IF(OR(CW5<>0,CV5=\"y\"),CW5,\" -\"))","v":66},{"$f":"IF(C5=0,\"\",IF(OR(DH5<>0,DG5=\"y\"),DH5,\" -\"))","v":11},{"$f":"IF(C5=0,\"\",IF(OR(DS5<>0,DR5=\"y\"),DS5,\" -\"))","v":6},{"$f":"IF(C5=0,\"\",IF(OR(ED5<>0,EC5=\"y\"),ED5,\" -\"))","v":24},{"$f":"IF(C5=0,\"\",IF(OR(EO5<>0,EN5=\"y\"),EO5,\" -\"))","v":22},{"$f":"IF(C5=0,\"\",IF(OR(EZ5<>0,EY5=\"y\"),EZ5,\" -\"))","v":39},{"$f":"IF(C5=0,\"\",IF(OR(FK5<>0,FJ5=\"y\"),FK5,\" -\"))","v":13},{"$f":"IF(C5=0,\"\",IF(OR(FV5<>0,FU5=\"y\"),FV5,\" -\"))","v":35},{"$f":"IF(C5=0,\"\",IF(OR(GG5<>0,GF5=\"y\"),GG5,\" -\"))","v":39},{"$f":"IF(C5=0,\"\",IF(OR(GR5<>0,GQ5=\"y\"),GR5,\" -\"))","v":8},{"$f":"IF(C5=0,\"\",IF(OR(HC5<>0,HB5=\"y\"),HC5,\" -\"))","v":12},{"$f":"IF(C5=0,\"\",IF(AC5=1,\"DNF\",IF(AD5<>1,\"~ \"&SUM(H5:W5),SUM(H5:W5))))","v":499},null,null,{"$f":"IF(C5<>\"\",C5,\"\")","v":216},3,null,1,null,null,{"$f":"IF(C5=0,99999,IF(AC5=1,9999,SUM(H5:W5)-AE5))","v":499},null,null,null,{"$f":"IF(C5<>\"\",C5,\"\")","v":216},null,1,4,null,null,null,null,null,{"$f":"IF(AS5=\"y\",0,IF(AQ5<>0,500,AL5*5+AM5*25+AN5*$AB5+AO5*50+AP5*50))","v":37},null,{"$f":"IF(C5<>\"\",C5,\"\")","v":216},1,1,5,null,null,null,null,null,{"$f":"IF(BD5=\"y\",0,IF(BB5<>0,500,AW5*5+AX5*25+AY5*$AB5+AZ5*50+BA5*50))","v":45},null,{"$f":"IF(C5<>\"\",C5,\"\")","v":216},null,3,5,null,null,null,null,null,{"$f":"IF(BO5=\"y\",0,IF(BM5<>0,500,BH5*5+BI5*25+BJ5*$AB5+BK5*50+BL5*50))","v":90},null,{"$f":"IF(C5<>\"\",C5,\"\")","v":216},3,null,5,null,null,null,null,null,{"$f":"IF(BZ5=\"y\",0,IF(BX5<>0,500,BS5*5+BT5*25+BU5*$AB5+BV5*50+BW5*50))","v":30},null,{"$f":"IF(C5<>\"\",C5,\"\")","v":216},2,null,4,null,null,null,null,null,{"$f":"IF(CK5=\"y\",0,IF(CI5<>0,500,CD5*5+CE5*25+CF5*$AB5+CG5*50+CH5*50))","v":22},null,{"$f":"IF(C5<>\"\",C5,\"\")","v":216},4,1,7,null,null,null,null,null,{"$f":"IF(CV5=\"y\",0,IF(CT5<>0,500,CO5*5+CP5*25+CQ5*$AB5+CR5*50+CS5*50))","v":66},null,{"$f":"IF(C5<>\"\",C5,\"\")","v":216},1,null,2,null,null,null,null,null,{"$f":"IF(DG5=\"y\",0,IF(DE5<>0,500,CZ5*5+DA5*25+DB5*$AB5+DC5*50+DD5*50))","v":11},null,{"$f":"IF(C5<>\"\",C5,\"\")","v":216},null,null,2,null,null,null,null,null,{"$f":"IF(DR5=\"y\",0,IF(DP5<>0,500,DK5*5+DL5*25+DM5*$AB5+DN5*50+DO5*50))","v":6},null,{"$f":"IF(C5<>\"\",C5,\"\")","v":216},null,null,8,null,null,null,null,null,{"$f":"IF(EC5=\"y\",0,IF(EA5<>0,500,DV5*5+DW5*25+DX5*$AB5+DY5*50+DZ5*50))","v":24},null,{"$f":"IF(C5<>\"\",C5,\"\")","v":216},2,null,4,null,null,null,null,null,{"$f":"IF(EN5=\"y\",0,IF(EL5<>0,500,EG5*5+EH5*25+EI5*$AB5+EJ5*50+EK5*50))","v":22},null,{"$f":"IF(C5<>\"\",C5,\"\")","v":216},1,1,3,null,null,null,null,null,{"$f":"IF(EY5=\"y\",0,IF(EW5<>0,500,ER5*5+ES5*25+ET5*$AB5+EU5*50+EV5*50))","v":39},null,{"$f":"IF(C5<>\"\",C5,\"\")","v":216},2,null,1,null,null,null,null,null,{"$f":"IF(FJ5=\"y\",0,IF(FH5<>0,500,FC5*5+FD5*25+FE5*$AB5+FF5*50+FG5*50))","v":13},null,{"$f":"IF(C5<>\"\",C5,\"\")","v":216},1,null,10,null,null,null,null,null,{"$f":"IF(FU5=\"y\",0,IF(FS5<>0,500,FN5*5+FO5*25+FP5*$AB5+FQ5*50+FR5*50))","v":35},null,{"$f":"IF(C5<>\"\",C5,\"\")","v":216},1,1,3,null,null,null,null,null,{"$f":"IF(GF5=\"y\",0,IF(GD5<>0,500,FY5*5+FZ5*25+GA5*$AB5+GB5*50+GC5*50))","v":39},null,{"$f":"IF(C5<>\"\",C5,\"\")","v":216},1,null,1,null,null,null,null,null,{"$f":"IF(GQ5=\"y\",0,IF(GO5<>0,500,GJ5*5+GK5*25+GL5*$AB5+GM5*50+GN5*50))","v":8},null,{"$f":"IF(C5<>\"\",C5,\"\")","v":216},null,null,4,null,null,null,null,null,{"$f":"IF(HB5=\"y\",0,IF(GZ5<>0,500,GU5*5+GV5*25+GW5*$AB5+GX5*50+GY5*50))","v":12}]
[null,2,211,"Suzuki Samurai -96","Wild Felix","Wild Walter","DE",5,30,5,50,40,25,10,20,185,20,10,25,20,55,5,35,540,null,null,211,5,null,1,null,null,540,null,null,null,211,null,null,1,null,null,null,null,null,5,null,211,null,1,1,null,null,null,null,null,30,null,211,null,null,1,null,null,null,null,null,5,null,211,1,1,4,null,null,null,null,null,50,null,211,2,null,6,null,null,null,null,null,40,null,211,3,null,2,null,null,null,null,null,25,null,211,1,null,1,null,null,null,null,null,10,null,211,2,null,2,null,null,null,null,null,20,null,211,null,null,7,2,1,null,null,null,185,null,211,1,null,3,null,null,null,null,null,20,null,211,null,null,2,null,null,null,null,null,10,null,211,1,null,4,null,null,null,null,null,25,null,211,2,null,2,null,null,null,null,null,20,null,211,null,2,1,null,null,null,null,null,55,null,211,1,null,null,null,null,null,null,null,5,null,211,1,null,6,null,null,null,null,null,35]
[null,3,203,"Suzuki Samurai","Kobylka Jr Jiri",null,"CZE",210,70,25,10,20,90,0,5,15,30,10,10,15,35,0,15,560,null,null,203,5,null,1,null,null,560,null,null,null,203,null,null,2,3,1,null,"No running tires",null,210,null,203,null,2,4,null,null,null,null,null,70,null,203,1,null,4,null,null,null,null,null,25,null,203,null,null,2,null,null,null,null,null,10,null,203,1,null,3,null,null,null,null,null,20,null,203,null,2,8,null,null,null,null,null,90,null,203,null,null,null,null,null,null,null,"Y",0,null,203,null,null,1,null,null,null,null,null,5,null,203,null,null,3,null,null,null,null,null,15,null,203,2,null,4,null,null,null,null,null,30,null,203,null,null,2,null,null,null,null,null,10,null,203,1,null,1,null,null,null,null,null,10,null,203,1,null,2,null,null,null,null,null,15,null,203,1,1,1,null,null,null,null,null,35,null,203,null,null,null,null,null,null,null,"y",0,null,203,null,null,3,null,null,null,null,null,15]
[null,4,204,"Suzuki SJ413 -88","Molnar Zoltan","Molnar Raul","HUN",110,30,55,40,70,105,0,25,40,30,0,35,80,10,5,5,640,null,null,204,5,null,1,null,null,640,null,null,null,204,null,3,7,null,null,null,null,null,110,null,204,1,null,5,null,null,null,null,null,30,null,204,1,1,5,null,null,null,null,null,55,null,204,null,1,3,null,null,null,null,null,40,null,204,1,1,8,null,null,null,null,null,70,null,204,4,2,7,null,null,null,null,null,105,null,204,null,null,null,null,null,null,null,"y",0,null,204,null,null,5,null,null,null,null,null,25,null,204,null,null,8,null,null,null,null,null,40,null,204,null,1,1,null,null,null,null,null,30,null,204,null,null,null,null,null,null,null,"y",0,null,204,1,1,1,null,null,null,null,null,35,null,204,4,2,2,null,null,null,null,null,80,null,204,1,null,1,null,null,null,null,null,10,null,204,1,null,null,null,null,null,null,null,5,null,204,null,null,1,null,null,null,null,null,5]
[null,5,217,"Jeep Wrangler -97","Kirsiaho Reima","Levo Teemu","FIN",43,45,151,45,230,43,19,6,18,27,12,41,48,41,37,37,843,null,null,217,3,null,1,null,null,843,null,null,null,217,null,1,6,null,null,null,null,null,43,null,217,1,1,5,null,null,null,null,null,45,null,217,1,3,7,null,1,null,"time",null,151,null,217,1,1,5,null,null,null,null,null,45,null,217,null,null,10,3,1,null,null,null,230,null,217,null,1,6,null,null,null,null,null,43,null,217,2,null,3,null,null,null,null,null,19,null,217,null,null,2,null,null,null,null,null,6,null,217,null,null,6,null,null,null,null,null,18,null,217,null,null,9,null,null,null,null,null,27,null,217,null,null,4,null,null,null,null,null,12,null,217,2,1,2,null,null,null,null,null,41,null,217,1,1,6,null,null,null,null,null,48,null,217,2,1,2,null,null,null,null,null,41,null,217,null,1,4,null,null,null,null,null,37,null,217,null,1,4,null,null,null,null,null,37]
[null,6,201,"Suzuki SJ413 -87","Kälin Kurt","Kälin Nicole","CHE",26,59,101,42,22,37,0,52,174,68,6,6,161,64,62,40,920,null,null,201,3,null,1,null,null,920,null,null,null,201,1,null,7,null,null,null,null,null,26,null,201,null,2,3,null,null,null,null,null,59,null,201,1,1,7,null,1,null,"time",null,101,null,201,1,1,4,null,null,null,null,null,42,null,201,2,null,4,null,null,null,null,null,22,null,201,2,null,9,null,null,null,"stuck",null,37,null,201,1,null,1,null,null,null,null,"y",0,null,201,null,1,9,null,null,null,null,null,52,null,201,null,null,8,2,1,null,null,null,174,null,201,null,2,6,null,null,null,null,null,68,null,201,null,null,2,null,null,null,null,null,6,null,201,null,null,2,null,null,null,null,null,6,null,201,3,1,7,1,1,null,null,null,161,null,201,1,2,3,null,null,null,null,null,64,null,201,null,2,4,null,null,null,null,null,62,null,201,null,1,5,null,null,null,null,null,40]
[null,7,207,"Suzuki Jimny","Shchetinin Sergey","Shchetinina Mariia","RUS",45,57,61,62,45,295,21,21,136,74,49,67,85,91,200,45,1354,null,null,207,4,null,1,null,null,1354,null,null,null,207,null,1,5,null,null,null,null,null,45,null,207,null,1,8,null,null,null,null,null,57,null,207,null,1,9,null,null,null,null,null,61,null,207,1,1,8,null,null,null,null,null,62,null,207,null,1,5,null,null,null,null,null,45,null,207,1,2,10,3,1,null,null,null,295,null,207,1,null,4,null,null,null,null,null,21,null,207,1,null,4,null,null,null,null,null,21,null,207,null,null,9,1,1,null,"time",null,136,null,207,1,1,11,null,null,null,null,null,74,null,207,null,1,6,null,null,null,null,null,49,null,207,2,1,8,null,null,null,null,null,67,null,207,4,1,10,null,null,null,null,null,85,null,207,null,3,4,null,null,null,null,null,91,null,207,null,null,null,3,1,null,"rollover",null,200,null,207,null,1,5,null,null,null,null,null,45]
[null,8,206,"Jeep Wrangles -03","Nikolaev Sergey","Nikolaev Dmitry","RUS",89,228,185,163,255,173,6,87,15,149,59,19,137,18,8,15,1606,null,null,206,3,null,1,null,null,1606,null,null,null,206,1,3,3,null,null,null,null,null,89,null,206,null,1,1,3,1,null,"gate 2 wrong direction",null,228,null,206,1,null,10,2,1,null,"time",null,185,null,206,4,1,6,1,1,null,"time",null,163,null,206,null,1,10,3,1,null,"stopped",null,255,null,206,1,null,6,2,1,null,"time",null,173,null,206,null,null,2,null,null,null,null,null,6,null,206,null,3,4,null,null,null,null,null,87,null,206,null,null,5,null,null,null,null,null,15,null,206,null,1,8,1,1,null,null,null,149,null,206,null,2,3,null,null,null,null,null,59,null,206,2,null,3,null,null,null,null,null,19,null,206,2,null,9,1,1,null,null,null,137,null,206,null,null,6,null,null,null,null,null,18,null,206,1,null,1,null,null,null,null,null,8,null,206,null,null,5,null,null,null,null,null,15]
[null,9,205,"Suzuki samurai -98","Morokhovetc Andrey","Morokhovets Mariia","RUS ",175,140,165,70,160,250,15,45,30,55,20,20,115,15,310,50,1635,null,null,205,5,null,1,null,null,1635,null,null,null,205,null,1,10,1,1,null,null,null,175,null,205,1,1,2,1,1,null,null,null,140,null,205,null,1,8,1,1,null,"time",null,165,null,205,1,1,8,null,null,null,null,null,70,null,205,2,null,10,1,1,null,null,null,160,null,205,1,null,9,3,1,null,null,null,250,null,205,1,null,2,null,null,null,null,null,15,null,205,null,1,4,null,null,null,null,null,45,null,205,null,null,6,null,null,null,null,null,30,null,205,null,1,6,null,null,null,null,null,55,null,205,1,null,3,null,null,null,null,null,20,null,205,1,null,3,null,null,null,null,null,20,null,205,3,null,10,null,1,null,null,null,115,null,205,1,null,2,null,null,null,null,null,15,null,205,null,1,17,3,1,null,"rollover",null,310,null,205,null,1,5,null,null,null,null,null,50]
[null,10,208,"Suzuki Samurai -94","Suchansky Ondrej",null,"SVK",75,110,255,40,155,240,10,235,205,110,15,15,265,15,5,15,1765,null,null,208,5,null,1,null,null,1765,null,null,null,208,2,2,3,null,null,null,null,null,75,null,208,1,2,11,null,null,null,null,null,110,null,208,null,null,1,4,1,null,null,null,255,null,208,1,null,7,null,null,null,null,null,40,null,208,3,null,8,1,1,null,null,null,155,null,208,null,null,8,3,1,null,"stuck",null,240,null,208,null,null,2,null,null,null,null,null,10,null,208,null,null,7,3,1,null,"Reversed back to gate",null,235,null,208,null,1,6,2,1,null,null,null,205,null,208,null,null,2,1,1,null,null,null,110,null,208,null,null,3,null,null,null,null,null,15,null,208,1,null,2,null,null,null,null,null,15,null,208,null,null,3,4,1,null,"stuck",null,265,null,208,1,null,2,null,null,null,null,null,15,null,208,1,null,null,null,null,null,null,null,5,null,208,1,null,2,null,null,null,null,null,15]
[null,11,210,"Suzuki Jimny -01","Falck Sven",null,"SWE ",49,268,317,279,35,224,18,43,168,109,6,12,224,123,24,224,2123,null,null,210,6,null,1,null,null,2123,null,null,null,210,null,1,4,null,null,null,null,null,49,null,210,null,null,3,4,1,null,null,null,268,null,210,null,1,7,4,1,null,null,null,317,null,210,1,null,4,4,1,null,"time, stuck",null,279,null,210,1,null,5,null,null,null,null,null,35,null,210,null,null,4,3,1,null,"stopped",null,224,null,210,null,null,3,null,null,null,null,null,18,null,210,null,1,3,null,null,null,null,null,43,null,210,null,null,3,2,1,null,null,null,168,null,210,6,1,9,null,null,null,null,null,109,null,210,null,null,1,null,null,null,null,null,6,null,210,null,null,2,null,null,null,null,null,12,null,210,null,2,4,2,1,null,null,null,224,null,210,1,null,3,1,1,null,null,null,123,null,210,null,null,4,null,null,null,null,null,24,null,210,null,null,4,3,1,null,null,null,224]
[null,12,213,"Suzuki Jimny -01","Enger Carl-Henrik","Enger Tom-Reidar","NO",61,129,145,65,307,114,226,209,194,232,4,188,286,47,320,33,2560,null,null,213,4,null,1,null,null,2560,null,null,null,213,null,1,9,null,null,null,null,null,61,null,213,1,null,6,1,1,null,"time",null,129,null,213,null,1,5,1,1,null,null,null,145,null,213,null,1,10,null,null,null,null,null,65,null,213,null,1,8,4,1,null,null,null,307,null,213,3,3,6,null,null,null,null,null,114,null,213,2,null,4,3,1,null,null,null,226,null,213,1,null,1,3,1,null,null,null,209,null,213,null,null,11,2,1,null,"time",null,194,null,213,null,null,8,3,1,null,null,null,232,null,213,null,null,1,null,null,null,null,null,4,null,213,1,1,2,2,1,null,null,null,188,null,213,null,null,9,4,1,null,null,null,286,null,213,2,1,3,null,null,null,null,null,47,null,213,6,null,10,4,1,null,null,null,320,null,213,null,1,2,null,null,null,null,null,33]
[null,13,202,"Jeep Wrangler -91","Hieble Wilfried","Kremmer Anna","CHE",160,175,320,260,220,230,25,180,205,75,205,45,295,235,55,230,2915,null,null,202,5,null,1,null,null,2915,null,null,null,202,null,1,7,1,1,null,"time",null,160,null,202,6,null,9,1,1,null,"time",null,175,null,202,null,null,14,4,1,null,"time",null,320,null,202,1,null,1,4,1,null,"time, stuck",null,260,null,202,null,null,4,3,1,null,null,null,220,null,202,1,null,5,3,1,null,null,null,230,null,202,null,null,5,null,null,null,null,null,25,null,202,null,2,6,1,1,null,null,null,180,null,202,null,1,6,2,1,null,null,null,205,null,202,2,1,8,null,null,null,null,null,75,null,202,null,null,1,3,1,null,"tow",null,205,null,202,1,1,3,null,null,null,"time",null,45,null,202,1,null,8,4,1,null,null,null,295,null,202,null,1,2,3,1,null,"time",null,235,null,202,1,1,5,null,null,null,null,null,55,null,202,1,null,5,3,1,null,"over 1m flag line",null,230]
[null,14,218,"Toyota LC -79","Pavlov Evgeny",null,"RUS",148,500,500,203,500,215,21,203,180,323,12,69,214,39,11,99,3237,null,null,218,3,null,1,null,null,3237,null,null,null,218,9,4,1,null,null,null,null,null,148,null,218,null,null,null,null,null,1,null,null,500,null,218,null,null,null,null,null,1,null,null,500,null,218,null,null,1,3,1,null,null,null,203,null,218,null,null,null,null,null,1,null,null,500,null,218,null,null,5,3,1,null,"stopped",null,215,null,218,3,null,2,null,null,null,null,null,21,null,218,null,null,1,3,1,null,null,null,203,null,218,null,null,10,2,1,null,null,null,180,null,218,3,1,11,4,1,null,null,null,323,null,218,null,null,4,null,null,null,null,null,12,null,218,2,2,3,null,null,null,null,null,69,null,218,1,null,3,3,1,null,null,null,214,null,218,1,1,3,null,null,null,null,null,39,null,218,1,null,2,null,null,null,null,null,11,null,218,null,1,8,null,1,null,null,null,99]
[null,15,212,"Suzuki Samurai -95","Kleiner Helmut","Butter Richard","DE",5,215,205,45,265,80,5,75,500,500,500,500,500,500,500,500,4895,null,null,212,5,null,1,null,null,4895,null,null,null,212,null,null,1,null,null,null,null,null,5,null,212,null,null,3,3,1,null,null,null,215,null,212,null,null,1,3,1,null,null,null,205,null,212,1,1,3,null,null,null,null,null,45,null,212,2,null,1,4,1,null,null,null,265,null,212,null,2,6,null,null,null,null,null,80,null,212,null,null,1,null,null,null,null,null,5,null,212,1,1,9,null,null,null,null,null,75,null,212,null,null,null,null,null,1,null,null,500,null,212,null,null,null,null,null,1,null,null,500,null,212,null,null,null,null,null,1,null,null,500,null,212,null,null,null,null,null,1,null,null,500,null,212,null,null,null,null,null,1,null,null,500,null,212,null,null,null,null,null,1,null,null,500,null,212,null,null,null,null,null,1,null,null,500,null,212,null,null,null,null,null,1,null,null,500]
[null,16,209,"Mitsubishi Pajero -99","Wahlen Gunnar",null,"SWE ",500,500,500,500,250,251,500,193,500,500,500,500,500,500,500,500,7194,null,null,209,3,null,1,null,null,7194,null,null,null,209,null,null,null,null,null,1,null,null,500,null,209,null,null,null,null,null,1,null,null,500,null,209,null,null,null,null,null,1,null,null,500,null,209,null,null,null,null,null,1,null,null,500,null,209,null,null,null,4,1,null,"stopped",null,250,null,209,6,null,7,3,1,null,"stuck",null,251,null,209,null,null,null,null,null,1,null,null,500,null,209,2,null,11,2,1,null,null,null,193,null,209,null,null,null,null,null,1,null,null,500,null,209,null,null,null,null,null,1,null,null,500,null,209,null,null,null,null,null,1,null,null,500,null,209,null,null,null,null,null,1,null,null,500,null,209,null,null,null,null,null,1,null,null,500,null,209,null,null,null,null,null,1,null,null,500,null,209,null,null,null,null,null,1,null,null,500,null,209,null,null,null,null,null,1,null,null,500]
[null,"",null,null,null,null,null,"","","","","","","","","","","","","","","","","",null,null,"",null,null,null,null,null,99999,null,null,null,"",null,null,null,null,null,null,null,null,0,null,"",null,null,null,null,null,null,null,null,0,null,"",null,null,null,null,null,null,null,null,0,null,"",null,null,null,null,null,null,null,null,0,null,"",null,null,null,null,null,null,null,null,0,null,"",null,null,null,null,null,null,null,null,0,null,"",null,null,null,null,null,null,null,null,0,null,"",null,null,null,null,null,null,null,null,0,null,"",null,null,null,null,null,null,null,null,0,null,"",null,null,null,null,null,null,null,null,0,null,"",null,null,null,null,null,null,null,null,0,null,"",null,null,null,null,null,null,null,null,0,null,"",null,null,null,null,null,null,null,null,0,null,"",null,null,null,null,null,null,null,null,0,null,"",null,null,null,null,null,null,null,null,0,null,"",null,null,null,null,null,null,null,null,0]
[]
[]
[]
[null,null,null,null," "]

{"sheet":"Modified","index":3,"n_rows":25,"n_cols":211,"rows_kept":25,"cut":false,"hidden":false,"merged":[[0,14,0,22]]}
[null,"Eurotrial 2019 - Finland",null,null,null,null,null,null,null,null,null,null,null,null,{"$f":"NOW()","v":"2019-08-11T21:53:47.970"},null,null,null,null,null,null,null,null,null,null,null,{"$f":"B1","v":"Eurotrial 2019 - Finland"},null,null,null,null,null,null,null,null,null,{"$f":"B1","v":"Eurotrial 2019 - Finland"},null,null,null,null,null,null,null,null,null,null,{"$f":"B1","v":"Eurotrial 2019 - Finland"},null,null,null,null,null,null,null,null,null,null,{"$f":"B1","v":"Eurotrial 2019 - Finland"},null,null,null,null,null,null,null,null,null,null,{"$f":"B1","v":"Eurotrial 2019 - Finland"},null,null,null,null,null,null,null,null,null,null,{"$f":"B1","v":"Eurotrial 2019 - Finland"},null,null,null,null,null,null,null,null,null,null,{"$f":"B1","v":"Eurotrial 2019 - Finland"},null,null,null,null,null,null,null,null,null,null,{"$f":"B1","v":"Eurotrial 2019 - Finland"},null,null,null,null,null,null,null,null,null,null,{"$f":"B1","v":"Eurotrial 2019 - Finland"},null,null,null,null,null,null,null,null,null,null,{"$f":"B1","v":"Eurotrial 2019 - Finland"},null,null,null,null,null,null,null,null,null,null,{"$f":"B1","v":"Eurotrial 2019 - Finland"},null,null,null,null,null,null,null,null,null,null,{"$f":"B1","v":"Eurotrial 2019 - Finland"},null,null,null,null,null,null,null,null,null,null,{"$f":"B1","v":"Eurotrial 2019 - Finland"},null,null,null,null,null,null,null,null,null,null,{"$f":"B1","v":"Eurotrial 2019 - Finland"},null,null,null,null,null,null,null,null,null,null,{"$f":"B1","v":"Eurotrial 2019 - Finland"},null,null,null,null,null,null,null,null,null,null,{"$f":"B1","v":"Eurotrial 2019 - Finland"},null,null,null,null,null,null,null,null,null,null,{"$f":"B1","v":"Eurotrial 2019 - Finland"}]
[null,"Class: Modified",null,null,null,null,null,null,null,null,null,null,null,null,null,null,null,null,null,null,null,null,null,null,null,null,{"$f":"B2","v":"Class: Modified"},null,null,null,null,null,null,null,null,null,{"$f":"B2","v":"Class: Modified"},null,null,null,null,null,null,null,null,null,null,{"$f":"B2","v":"Class: Modified"},null,null,null,null,null,null,null,null,null,null,{"$f":"B2","v":"Class: Modified"},null,null,null,null,null,null,null,null,null,null,{"$f":"B2","v":"Class: Modified"},null,null,null,null,null,null,null,null,null,null,{"$f":"B2","v":"Class: Modified"},null,null,null,null,null,null,null,null,null,null,{"$f":"B2","v":"Class: Modified"},null,null,null,null,null,null,null,null,null,null,{"$f":"B2","v":"Class: Modified"},null,null,null,null,null,null,null,null,null,null,{"$f":"B2","v":"Class: Modified"},null,null,null,null,null,null,null,null,null,null,{"$f":"B2","v":"Class: Modified"},null,null,null,null,null,null,null,null,null,null,{"$f":"B2","v":"Class: Modified"},null,null,null,null,null,null,null,null,null,null,{"$f":"B2","v":"Class: Modified"},null,null,null,null,null,null,null,null,null,null,{"$f":"B2","v":"Class: Modified"},null,null,null,null,null,null,null,null,null,null,{"$f":"B2","v":"Class: Modified"},null,null,null,null,null,null,null,null,null,null,{"$f":"B2","v":"Class: Modified"},null,null,null,null,null,null,null,null,null,null,{"$f":"B2","v":"Class: Modified"},null,null,null,null,null,null,null,null,null,null,{"$f":"B2","v":"Class: Modified"}]
[null,null,null,null,null,null,null,null,null,null,null,null,null,null,null,null,null,null,null,null,null,null,null,null,null,null,null,null,null,null,null,null,null,null,null,null,"Section 1.",null,"Section 1.",null,"Section 1.",null,"Section 1.",null,"Section 1.",null,null,"Section 2.",null,"Section 2.",null,"Section 2.",null,"Section 2.",null,"Section 2.",null,null,"Section 3.",null,"Section 3.",null,"Section 3.",null,"Section 3.",null,"Section 3.",null,null,"Section 4.",null,"Section 4.",null,"Section 4.",null,"Section 4.",null,"Section 4.",null,null,"Section 5.",null,"Section 5.",null,"Section 5.",null,"Section 5.",null,"Section 5.",null,null,"Section 6.",null,"Section 6.",null,"Section 6.",null,"Section 6.",null,"Section 6.",null,null,"Section 7.",null,"Section 7.",null,"Section 7.",null,"Section 7.",null,"Section 7.",null,null,"Section 8.",null,"Section 8.",null,"Section 8.",null,"Section 8.",null,"Section 8.",null,null,"Section 9.",null,"Section 9.",null,"Section 9.",null,"Section 9.",null,"Section 9.",null,null,"Section 10.",null,"Section 10.",null,"Section 10.",null,"Section 10.",null,"Section 10.",null,null,"Section 11.",null,"Section 11.",null,"Section 11.",null,"Section 11.",null,"Section 11.",null,null,"Section 12.",null,"Section 12.",null,"Section 12.",null,"Section 12.",null,"Section 12.",null,null,"Section 13.",null,"Section 13.",null,"Section 13.",null,"Section 13.",null,"Section 13.",null,null,"Section 14.",null,"Section 14.",null,"Section 14.",null,"Section 14.",null,"Section 14.",null,null,"Section 15.",null,"Section 15.",null,"Section 15.",null,"Section 15.",null,"Section 15",null,null,"Section 16.",null,"Section 16.",null,"Section 16.",null,"Section 16.",null,"Section 16."]
[null,"Pos.","Race #","Car","Driver","Co-Driver","Country","1.","2.","3.","4.","5.","6.","7.","8.",9,10,11,12,13,14,15,16,"Total",null,null,"Race #","Car reverse points","DNF (1 if DNF)","Ended race","Order change (1 = go higher)",null,"Result points, do not change",null,null,null,"Race #","Touching / Driving under (5)","Broken post / stick (25)","Reverse","Not Passed Gate (50)","Section not completed (50)","Not driven section (500)","Comment","Clean (y = ok)","Total",null,"Race #","Touching / Driving under (5)","Broken post / stick (25)","Reverse","Not Passed Gate (50)","Section not completed (50)","Not driven section (500)","Comment","Clean (y = ok)","Total",null,"Race #","Touching / Driving under (5)","Broken post / stick (25)","Reverse","Not Passed Gate (50)","Section not completed (50)","Not driven section (500)","Comment","Clean (y = ok)","Total",null,"Race #","Touching / Driving under (5)","Broken post / stick (25)","Reverse","Not Passed Gate (50)","Section not completed (50)","Not driven section (500)","Comment","Clean (y = ok)","Total",null,"Race #","Touching / Driving under (5)","Broken post / stick (25)","Reverse","Not Passed Gate (50)","Section not completed (50)","Not driven section (500)","Comment","Clean (y = ok)","Total",null,"Race #","Touching / Driving under (5)","Broken post / stick (25)","Reverse","Not Passed Gate (50)","Section not completed (50)","Not driven section (500)","Comment","Clean (y = ok)","Total",null,"Race #","Touching / Driving under (5)","Broken post / stick (25)","Reverse","Not Passed Gate (50)","Section not completed (50)","Not driven section (500)","Comment","Clean (y = ok)","Total",null,"Race #","Touching / Driving under (5)","Broken post / stick (25)","Reverse","Not Passed Gate (50)","Section not completed (50)","Not driven section (500)","Comment","Clean (y = ok)","Total",null,"Race #","Touching / Driving under (5)","Broken post / stick (25)","Reverse","Not Passed Gate (50)","Section not completed (50)","Not driven section (500)","Comment","Clean (y = ok)","Total",null,"Race #","Touching / Driving under (5)","Broken post / stick (25)","Reverse","Not Passed Gate (50)","Section not completed (50)","Not driven section (500)","Comment","Clean (y = ok)","Total",null,"Race #","Touching / Driving under (5)","Broken post / stick (25)","Reverse","Not Passed Gate (50)","Section not completed (50)","Not driven section (500)","Comment","Clean (y = ok)","Total",null,"Race #","Touching / Driving under (5)","Broken post / stick (25)","Reverse","Not Passed Gate (50)","Section not completed (50)","Not driven section (500)","Comment","Clean (y = ok)","Total",null,"Race #","Touching / Driving under (5)","Broken post / stick (25)","Reverse","Not Passed Gate (50)","Section not completed (50)","Not driven section (500)","Comment","Clean (y = ok)","Total",null,"Race #","Touching / Driving under (5)","Broken post / stick (25)","Reverse","Not Passed Gate (50)","Section not completed (50)","Not driven section (500)","Comment","Clean (y = ok)","Total",null,"Race #","Touching / Driving under (5)","Broken post / stick (25)","Reverse","Not Passed Gate (50)","Section not completed (50)","Not driven section (500)","Comment","Clean (y = ok)","Total",null,"Race #","Touching / Driving under (5)","Broken post / stick (25)","Reverse","Not Passed Gate (50)","Section not completed (50)","Not driven section (500)","Comment","Clean (y = ok)","Total"]
[null,{"$f":"IF(C5=0,\"\",ROW(C5)-4)","v":1},311,"MB GE 500 V8 -93","Niinimäki Miika","Takala Mika","FIN ",{"$f":"IF(C5=0,\"\",IF(OR(AS5=\"y\",AT5<>0),AT5,\" -\"))","v":0},{"$f":"IF(C5=0,\"\",IF(OR(BD5=\"y\",BE5<>0),BE5,\" -\"))","v":41},{"$f":"IF(C5=0,\"\",IF(OR(BO5=\"y\",BP5<>0),BP5,\" -\"))","v":118},{"$f":"IF(C5=0,\"\",IF(OR(CA5<>0,BZ5=\"y\"),CA5,\" -\"))","v":121},{"$f":"IF(C5=0,\"\",IF(OR(CL5<>0,CK5=\"y\"),CL5,\" -\"))","v":30},{"$f":"IF(C5=0,\"\",IF(OR(CW5<>0,CV5=\"y\"),CW5,\" -\"))","v":6},{"$f":"IF(C5=0,\"\",IF(OR(DH5<>0,DG5=\"y\"),DH5,\" -\"))","v":12},{"$f":"IF(C5=0,\"\",IF(OR(DS5<>0,DR5=\"y\"),DS5,\" -\"))","v":8},{"$f":"IF(C5=0,\"\",IF(OR(ED5<>0,EC5=\"y\"),ED5,\" -\"))","v":6},{"$f":"IF(C5=0,\"\",IF(OR(EO5<>0,EN5=\"y\"),EO5,\" -\"))","v":13},{"$f":"IF(C5=0,\"\",IF(OR(EZ5<>0,EY5=\"y\"),EZ5,\" -\"))","v":13},{"$f":"IF(C5=0,\"\",IF(OR(FK5<>0,FJ5=\"y\"),FK5,\" -\"))","v":112},{"$f":"IF(C5=0,\"\",IF(OR(FV5<>0,FU5=\"y\"),FV5,\" -\"))","v":17},{"$f":"IF(C5=0,\"\",IF(OR(GG5<>0,GF5=\"y\"),GG5,\" -\"))","v":6},{"$f":"IF(C5=0,\"\",IF(OR(GR5<>0,GQ5=\"y\"),GR5,\" -\"))","v":14},{"$f":"IF(C5=0,\"\",IF(OR(HC5<>0,HB5=\"y\"),HC5,\" -\"))","v":14},{"$f":"IF(C5=0,\"\",IF(AC5=1,\"DNF\",IF(AD5<>1,\"~ \"&SUM(H5:W5),SUM(H5:W5))))","v":531},null,null,{"$f":"IF(C5<>\"\",C5,\"\")","v":311},3,null,1,null,null,{"$f":"IF(C5=0,99999,IF(AC5=1,9999,SUM(H5:W5)-AE5))","v":531},null,null,null,{"$f":"IF(C5<>\"\",C5,\"\")","v":311},null,null,null,null,null,null,null,"y",{"$f":"IF(AS5=\"y\",0,IF(AQ5<>0,500,AL5*5+AM5*25+AN5*$AB5+AO5*50+AP5*50))","v":0},null,{"$f":"IF(C5<>\"\",C5,\"\")","v":311},2,1,2,null,null,null,null,null,{"$f":"IF(BD5=\"y\",0,IF(BB5<>0,500,AW5*5+AX5*25+AY5*$AB5+AZ5*50+BA5*50))","v":41},null,{"$f":"IF(C5<>\"\",C5,\"\")","v":311},null,null,6,1,1,null,"time",null,{"$f":"IF(BO5=\"y\",0,IF(BM5<>0,500,BH5*5+BI5*25+BJ5*$AB5+BK5*50+BL5*50))","v":118},null,{"$f":"IF(C5<>\"\",C5,\"\")","v":311},null,null,7,1,1,null,null,null,{"$f":"IF(BZ5=\"y\",0,IF(BX5<>0,500,BS5*5+BT5*25+BU5*$AB5+BV5*50+BW5*50))","v":121},null,{"$f":"IF(C5<>\"\",C5,\"\")","v":311},3,null,5,null,null,null,null,null,{"$f":"IF(CK5=\"y\",0,IF(CI5<>0,500,CD5*5+CE5*25+CF5*$AB5+CG5*50+CH5*50))","v":30},null,{"$f":"IF(C5<>\"\",C5,\"\")","v":311},null,null,2,null,null,null,null,null,{"$f":"IF(CV5=\"y\",0,IF(CT5<>0,500,CO5*5+CP5*25+CQ5*$AB5+CR5*50+CS5*50))","v":6},null,{"$f":"IF(C5<>\"\",C5,\"\")","v":311},null,null,4,null,null,null,null,null,{"$f":"IF(DG5=\"y\",0,IF(DE5<>0,500,CZ5*5+DA5*25+DB5*$AB5+DC5*50+DD5*50))","v":12},null,{"$f":"IF(C5<>\"\",C5,\"\")","v":311},1,null,1,null,null,null,null,null,{"$f":"IF(DR5=\"y\",0,IF(DP5<>0,500,DK5*5+DL5*25+DM5*$AB5+DN5*50+DO5*50))","v":8},null,{"$f":"IF(C5<>\"\",C5,\"\")","v":311},null,null,2,null,null,null,null,null,{"$f":"IF(EC5=\"y\",0,IF(EA5<>0,500,DV5*5+DW5*25+DX5*$AB5+DY5*50+DZ5*50))","v":6},null,{"$f":"IF(C5<>\"\",C5,\"\")","v":311},2,null,1,null,null,null,null,null,{"$f":"IF(EN5=\"y\",0,IF(EL5<>0,500,EG5*5+EH5*25+EI5*$AB5+EJ5*50+EK5*50))","v":13},null,{"$f":"IF(C5<>\"\",C5,\"\")","v":311},2,null,1,null,null,null,null,null,{"$f":"IF(EY5=\"y\",0,IF(EW5<>0,500,ER5*5+ES5*25+ET5*$AB5+EU5*50+EV5*50))","v":13},null,{"$f":"IF(C5<>\"\",C5,\"\")","v":311},null,null,4,1,1,null,"time",null,{"$f":"IF(FJ5=\"y\",0,IF(FH5<>0,500,FC5*5+FD5*25+FE5*$AB5+FF5*50+FG5*50))","v":112},null,{"$f":"IF(C5<>\"\",C5,\"\")","v":311},1,null,4,null,null,null,null,null,{"$f":"IF(FU5=\"y\",0,IF(FS5<>0,500,FN5*5+FO5*25+FP5*$AB5+FQ5*50+FR5*50))","v":17},null,{"$f":"IF(C5<>\"\",C5,\"\")","v":311},null,null,2,null,null,null,null,null,{"$f":"IF(GF5=\"y\",0,IF(GD5<>0,500,FY5*5+FZ5*25+GA5*$AB5+GB5*50+GC5*50))","v":6},null,{"$f":"IF(C5<>\"\",C5,\"\")","v":311},1,null,3,null,null,null,null,null,{"$f":"IF(GQ5=\"y\",0,IF(GO5<>0,500,GJ5*5+GK5*25+GL5*$AB5+GM5*50+GN5*50))","v":14},null,{"$f":"IF(C5<>\"\",C5,\"\")","v":311},1,null,3,null,null,null,null,null,{"$f":"IF(HB5=\"y\",0,IF(GZ5<>0,500,GU5*5+GV5*25+GW5*$AB5+GX5*50+GY5*50))","v":14}]
[null,2,310,"Suzuki -85","Eriksen Brynjar","Steen Anette","NO ",35,35,10,30,10,0,200,5,60,20,55,110,0,20,0,100,690,null,null,310,5,null,1,null,null,690,null,null,null,310,1,1,1,null,null,null,null,null,35,null,310,5,null,2,null,null,null,null,null,35,null,310,null,null,2,null,null,null,null,null,10,null,310,1,1,null,null,null,null,null,null,30,null,310,null,null,2,null,null,null,null,null,10,null,310,null,null,null,null,null,null,null,"y",0,null,310,null,null,null,3,1,null,null,null,200,null,310,null,null,1,null,null,null,null,null,5,null,310,1,1,6,null,null,null,null,null,60,null,310,2,null,2,null,null,null,null,null,20,null,310,2,1,4,null,null,null,null,null,55,null,310,1,null,1,1,1,null,"driver stopped secton",null,110,null,310,null,null,null,null,null,null,null,"y",0,null,310,1,null,3,null,null,null,null,null,20,null,310,null,null,null,null,null,null,null,"y",0,null,310,1,2,9,null,null,null,null,null,100]
[null,3,316,"Suzuki -88","Ronny Aslaksen","Monica Aslaksen","NO",0,5,225,175,160,5,5,5,5,20,190,105,5,5,30,15,955,null,null,316,5,null,1,null,null,955,null,null,null,316,null,null,null,null,null,null,null,"y",0,null,316,null,null,1,null,null,null,null,null,5,null,316,null,null,5,3,1,null,null,null,225,null,316,null,2,5,1,1,null,null,null,175,null,316,1,null,1,2,1,null,"wrong director of gate",null,160,null,316,null,null,1,null,null,null,null,null,5,null,316,null,null,1,null,null,null,null,null,5,null,316,null,null,1,null,null,null,null,null,5,null,316,null,null,1,null,null,null,null,null,5,null,316,1,null,3,null,null,null,null,null,20,null,316,1,1,2,2,1,null,"rollover",null,190,null,316,1,null,null,1,1,null,"drive stioodes section",null,105,null,316,1,null,null,null,null,null,null,null,5,null,316,null,null,1,null,null,null,null,null,5,null,316,null,1,1,null,null,null,null,null,30,null,316,null,null,3,null,null,null,null,null,15]
[null,4,313,"Range Rover Classic -70","Orvasto Petri","Orvasto Veeti","FIN",56,66,23,119,36,6,2,33,4,34,250,125,64,164,27,35,1044,null,null,313,2,null,1,null,null,1044,null,null,null,313,null,2,3,null,null,null,null,null,56,null,313,2,2,3,null,null,null,null,null,66,null,313,1,null,9,null,null,null,null,null,23,null,313,1,null,7,1,1,null,"time",null,119,null,313,1,1,3,null,null,null,null,null,36,null,313,null,null,3,null,null,null,null,null,6,null,313,null,null,1,null,null,null,null,null,2,null,313,null,1,4,null,null,null,null,null,33,null,313,null,null,2,null,null,null,null,null,4,null,313,1,1,2,null,null,null,null,null,34,null,313,null,null,null,4,1,null,null,null,250,null,313,null,1,null,1,1,null,null,null,125,null,313,2,2,2,null,null,null,null,null,64,null,313,null,null,7,2,1,null,"stuck",null,164,null,313,null,1,1,null,null,null,null,null,27,null,313,null,1,5,null,null,null,null,null,35]
[null,5,304,"Suzuki Samurai -95","Stanovsky Petr","Janicek Vojtech","CZE ",25,25,95,160,280,10,30,220,20,35,85,145,50,20,0,40,1240,null,null,304,5,null,1,null,null,1240,null,null,null,304,null,1,null,null,null,null,null,null,25,null,304,2,null,3,null,null,null,null,null,25,null,304,2,2,7,null,null,null,null,null,95,null,304,null,1,7,1,1,null,null,null,160,null,304,null,null,6,4,1,null,"time",null,280,null,304,null,null,2,null,null,null,null,null,10,null,304,null,1,1,null,null,null,null,null,30,null,304,1,1,8,2,1,null,null,null,220,null,304,1,null,3,null,null,null,null,null,20,null,304,null,1,2,null,null,null,null,null,35,null,304,2,1,null,null,1,null,null,null,85,null,304,1,1,3,1,1,null,null,null,145,null,304,5,null,5,null,null,null,null,null,50,null,304,1,null,3,null,null,null,null,null,20,null,304,null,null,null,null,null,null,null,"y",0,null,304,3,null,5,null,null,null,null,null,40]
[null,6,314,"Toyota LJ -87","Juopperi Sami","Purhonen Taneli","FIN",56,256,246,131,147,0,3,8,11,8,124,105,14,73,9,65,1256,null,null,314,3,null,1,null,null,1256,null,null,null,314,null,2,2,null,null,null,null,null,56,null,314,null,null,2,4,1,null,"car broke down",null,256,null,314,null,1,7,3,1,null,null,null,246,null,314,2,null,7,1,1,null,null,null,131,null,314,2,1,4,1,1,null,"time",null,147,null,314,null,null,null,null,null,null,null,"y",0,null,314,null,null,1,null,null,null,null,null,3,null,314,1,null,1,null,null,null,null,null,8,null,314,1,null,2,null,null,null,null,null,11,null,314,1,null,1,null,null,null,null,null,8,null,314,null,null,8,1,1,null,null,null,124,null,314,1,null,null,1,1,null,"driver stopped section",null,105,null,314,1,null,3,null,null,null,null,null,14,null,314,1,null,6,null,1,null,"time",null,73,null,314,null,null,3,null,null,null,null,null,9,null,314,null,null,5,null,1,null,"time",null,65]
[null,7,305,"Toyota LJ70 -90","Pozar Martin","Glas Jakub","CZE ",67,58,208,117,295,13,184,25,153,33,100,152,23,62,17,146,1653,null,null,305,4,null,1,null,null,1653,null,null,"!!!",305,1,null,3,null,1,null,"time",null,67,null,305,null,2,2,null,null,null,null,null,58,null,305,null,null,2,3,1,null,null,null,208,null,305,1,null,3,1,1,null,null,null,117,null,305,null,1,5,4,1,null,null,null,295,null,305,1,null,2,null,null,null,null,null,13,null,305,1,1,1,2,1,null,"cate two times",null,184,null,305,null,1,null,null,null,null,null,null,25,null,305,null,1,7,1,1,null,"time",null,153,null,305,null,1,2,null,null,null,null,null,33,null,305,1,1,5,null,1,null,null,null,100,null,305,3,1,3,1,1,null,null,null,152,null,305,3,null,2,null,null,null,null,null,23,null,305,null,null,3,null,1,null,"time",null,62,null,305,1,null,3,null,null,null,null,null,17,null,305,1,1,4,1,1,null,"time",null,146]
[null,8,303,"Suzuki SJ413","Halter Daniel","Halter Urs","CHE",10,90,230,250,275,15,40,20,95,30,285,140,50,30,170,50,1780,null,null,303,5,null,1,null,null,1780,null,null,null,303,null,null,2,null,null,null,null,null,10,null,303,2,2,6,null,null,null,null,null,90,null,303,null,null,6,3,1,null,"time",null,230,null,303,null,4,10,1,1,null,"time",null,250,null,303,null,1,null,4,1,null,"rollover",null,275,null,303,null,null,3,null,null,null,null,null,15,null,303,null,1,3,null,null,null,null,null,40,null,303,2,null,2,null,null,null,null,null,20,null,303,null,3,4,null,null,null,null,null,95,null,303,null,1,1,null,null,null,null,null,30,null,303,null,2,7,3,1,null,null,null,285,null,303,null,1,3,1,1,null,"driver stopped section",null,140,null,303,1,1,4,null,null,null,null,null,50,null,303,null,null,6,null,null,null,null,null,30,null,303,null,null,4,2,1,null,"rollover",null,170,null,303,1,1,4,null,null,null,null,null,50]
[null,9,309,"Suzuki","Gundersen Christoffer",null,"NO",85,5,215,145,305,0,0,170,90,45,260,130,25,140,45,170,1830,null,null,309,5,null,1,null,null,1830,null,null,null,309,1,1,1,null,1,null,"time",null,85,null,309,null,null,1,null,null,null,null,null,5,null,309,null,null,3,3,1,null,"stoped",null,215,null,309,null,1,4,1,1,null,"time",null,145,null,309,1,1,5,4,1,null,"stopped",null,305,null,309,null,null,null,null,null,null,null,"y",0,null,309,null,null,null,null,null,null,null,"y",null,null,309,1,null,3,2,1,null,"rollover",null,170,null,309,null,1,3,null,1,null,"time",null,90,null,309,2,1,2,null,null,null,null,null,45,null,309,1,3,6,2,1,null,"time",null,260,null,309,1,1,null,1,1,null,"driver stopped secton",null,130,null,309,2,null,3,null,null,null,null,null,25,null,309,2,null,6,1,1,null,"time",null,140,null,309,1,1,3,null,null,null,null,null,45,null,309,1,null,3,2,1,null,null,null,170]
[null,10,301,"Jeep CJ 5 -77","Sigg Jasmin","Gähwiler Samuel","CHE",90,65,240,165,265,0,0,70,180,25,250,250,15,180,175,220,2190,null,null,301,5,null,1,null,null,2190,null,null,null,301,null,3,3,null,null,null,null,null,90,null,301,1,2,2,null,null,null,null,null,65,null,301,1,1,2,3,1,null,null,null,240,null,301,1,1,7,1,1,null,null,null,165,null,301,1,null,2,4,1,null,"stuck",null,265,null,301,null,null,null,null,null,null,null,"y",0,null,301,null,null,null,null,null,null,null,"y",{"$f":"IF(DG14=\"y\",0,IF(DE14<>0,500,CZ14*5+DA14*25+DB14*$AB14+DC14*50+DD14*50))","v":0},null,301,2,2,2,null,null,null,null,null,70,null,301,null,2,6,1,1,null,"rollover",null,180,null,301,null,1,null,null,null,null,null,null,25,null,301,null,null,null,4,1,null,null,null,250,null,301,null,null,null,4,1,null,null,null,250,null,301,2,null,1,null,null,null,null,null,15,null,301,1,null,5,2,1,null,null,null,180,null,301,null,1,null,2,1,null,null,null,175,null,301,1,null,3,3,1,null,"rollover",null,220]
[null,11,302,"Jeep CJ 5 -77","Gähwiler Samuel","Sigg Jasmin","CHE",60,35,255,175,315,5,220,10,165,25,310,250,30,210,195,205,2465,null,null,302,5,null,1,null,null,2465,null,null,null,302,null,2,2,null,null,null,null,null,60,null,302,1,1,1,null,null,null,null,null,35,null,302,null,1,6,3,1,null,null,null,255,null,302,null,2,5,1,1,null,null,null,175,null,302,null,1,8,4,1,null,"stopped",null,315,null,302,null,null,1,null,null,null,null,null,5,null,302,null,2,4,2,1,null,null,null,220,null,302,null,null,2,null,null,null,null,null,10,null,302,1,2,2,1,1,null,null,null,165,null,302,null,1,null,null,null,null,null,null,25,null,302,1,null,11,4,1,null,null,null,310,null,302,null,null,null,4,1,null,null,null,250,null,302,1,1,null,null,null,null,null,null,30,null,302,null,null,12,2,1,null,null,null,210,null,302,null,1,4,2,1,null,null,null,195,null,302,null,null,11,2,1,null,null,null,205]
[null,12,315,"Suzuki Jimny -00","Toselli Mario","Toselli Umberto","ITA",270,116,63,141,271,8,13,0,500,500,145,500,13,500,500,500,4040,null,null,315,4,null,1,null,null,4040,null,null,null,315,null,null,5,4,1,null,"broken car",null,270,null,315,null,null,4,1,1,null,"time",null,116,null,315,2,1,7,null,null,null,null,null,63,null,315,null,1,4,1,1,null,null,null,141,null,315,1,null,4,4,1,null,"rollover",null,271,null,315,null,null,2,null,null,null,null,null,8,null,315,1,null,2,null,null,null,null,null,13,null,315,null,null,null,null,null,null,null,"y",0,null,315,null,null,null,null,null,1,null,null,500,null,315,null,null,null,null,null,1,null,null,500,null,315,null,1,5,1,1,null,null,null,145,null,315,null,null,null,null,null,1,null,null,500,null,315,1,null,2,null,null,null,null,null,13,null,315,null,null,null,null,null,1,null,null,500,null,315,null,null,null,null,null,1,null,null,500,null,315,null,null,null,null,null,1,null,null,500]
[null,13,307,"Suzuki Samurai -94","Turcan Martin","Baskova Martina","SVK",40,265,200,250,250,330,260,500,500,500,225,190,50,125,500,500,4685,null,null,307,5,null,1,null,null,4685,null,null,null,307,null,1,3,null,null,null,null,null,40,null,307,1,null,2,4,1,null,"car broke down",null,265,null,307,null,null,null,3,1,null,null,null,200,null,307,null,null,null,4,1,null,null,null,250,null,307,null,null,null,4,1,null,"dipped",null,250,null,307,1,null,15,4,1,null,"time",null,330,null,307,null,null,2,4,1,null,null,null,260,null,307,null,null,null,null,null,1,null,null,500,null,307,null,null,null,null,null,1,null,null,500,null,307,null,null,null,null,null,1,null,null,500,null,307,4,1,6,2,1,null,null,null,225,null,307,null,2,8,1,1,null,"driver stopped section",null,190,null,307,7,null,3,null,null,null,null,null,50,null,307,null,2,5,null,1,null,"time",null,125,null,307,null,null,null,null,null,1,null,null,500,null,307,null,null,null,null,null,1,null,null,500]
[null,14,308,"MB G320","Bigler Edgar","Köngeter Michael","DE",131,500,500,500,500,500,159,256,500,500,500,500,500,500,500,500,7046,null,null,308,3,null,1,null,null,7046,null,null,"!!!!",308,null,1,2,1,1,null,"time",null,131,null,308,null,null,null,null,null,1,null,null,500,null,308,null,null,null,null,null,1,null,null,500,null,308,null,null,null,null,null,1,null,null,500,null,308,null,null,null,null,null,1,null,null,500,null,308,null,null,null,null,null,1,null,null,500,null,308,null,2,3,1,1,null,"rollover",null,159,null,308,null,null,2,4,1,null,null,null,256,null,308,null,null,null,null,null,1,null,null,500,null,308,null,null,null,null,null,1,null,null,500,null,308,null,null,null,null,null,1,null,null,500,null,308,null,null,null,null,null,1,null,null,500,null,308,null,null,null,null,null,1,null,null,500,null,308,null,null,null,null,null,1,null,null,500,null,308,null,null,null,null,null,1,null,null,500,null,308,null,null,null,null,null,1,null,null,500]
[null,15,312,"Range Rover -86","Hanhikoski Tomi","Hanhikoski Petri","FIN",120,286,500,227,500,500,500,500,500,500,500,500,500,500,500,500,7133,null,null,312,2,null,1,null,null,7133,null,null,null,312,null,null,10,1,1,null,"time",null,120,null,312,null,null,18,4,1,null,null,null,286,null,312,null,null,null,null,null,1,null,null,500,null,312,3,2,6,2,1,null,"time",null,227,null,312,null,null,null,null,null,1,null,null,500,null,312,1,null,4,null,null,1,null,null,500,null,312,null,null,null,null,null,1,null,null,500,null,312,null,null,null,null,null,1,null,null,500,null,312,null,null,null,null,null,1,null,null,500,null,312,null,null,null,null,null,1,null,null,500,null,312,null,null,null,null,null,1,null,null,500,null,312,null,null,null,null,null,1,null,null,500,null,312,null,null,null,null,null,1,null,null,500,null,312,null,null,null,null,null,1,null,null,500,null,312,null,null,null,null,null,1,null,null,500,null,312,null,null,null,null,null,1,null,null,500]
[null,16,306,"Suzuki samurai VX80 V1 -98","Wegscheider Christian",null,"AUT",500,500,500,500,265,500,500,500,500,500,500,500,500,500,500,500,7765,null,null,306,5,null,1,null,null,7765,null,null,null,306,null,null,null,null,null,1,null,null,500,null,306,null,null,null,null,null,1,null,null,500,null,306,null,null,null,null,null,1,null,null,500,null,306,null,null,null,null,null,1,null,null,500,null,306,null,null,3,4,1,null,"rollover",null,265,null,306,null,null,null,null,null,1,null,null,500,null,306,null,null,null,null,null,1,null,null,500,null,306,null,null,null,null,null,1,null,null,500,null,306,null,null,null,null,null,1,null,null,500,null,306,null,null,null,null,null,1,null,null,500,null,306,null,null,null,null,null,1,null,null,500,null,306,null,null,null,null,null,1,null,null,500,null,306,null,null,null,null,null,1,null,null,500,null,306,null,null,null,null,null,1,null,null,500,null,306,null,null,null,null,null,1,null,null,500,null,306,null,null,null,null,null,1,null,null,500]
[null,"",null,null,null,null,null,"","","","","","","","","","","","","","","","","",null,null,"",null,null,null,null,null,99999,null,null,null,"",null,null,null,null,null,null,null,null,0,null,"",null,null,null,null,null,null,null,null,0,null,"",null,null,null,null,null,null,null,null,0,null,"",null,null,null,null,null,null,null,null,0,null,"",null,null,null,null,null,null,null,null,0,null,"",null,null,null,null,null,null,null,null,0,null,"",null,null,null,null,null,null,null,null,0,null,"",null,null,null,null,null,null,null,null,0,null,"",null,null,null,null,null,null,null,null,0,null,"",null,null,null,null,null,null,null,null,0,null,"",null,null,null,null,null,null,null,null,0,null,"",null,null,null,null,null,null,null,null,0,null,"",null,null,null,null,null,null,null,null,0,null,"",null,null,null,null,null,null,null,null,0,null,"",null,null,null,null,null,null,null,null,0,null,"",null,null,null,null,null,null,null,null,0]
[]
[]
[]
[null,null,null,null," "]